Cogmind - Beta 17.1 @@@ ROGUE MODE // 2026.09.22 @ 19:19:18 Player: TUNDRA Result: Destroyed by 6D-FDP(R) with Subdweller Machine Gun Performance ------------- Evolutions (0) 0 Regions Visited (2) 400 Robots Destroyed (28) 140 Value Destroyed (578) 578 Prototype IDs (2) 40 Alien Tech Used (0) 0 Bonus (0) 0 TOTAL SCORE: 1158 Bonus ------- None Cogmind --------- Core Integrity 0/250 Matter 213/300 Energy 315/315 System Corruption 1% Temperature Cool (0) Movement Walking (120) Location -10/Subcaves Parts ------- > --- POWER (1) -------- Neutrino Core > --- PROPULSION (2) --- Carbon-fiber Leg Carbon-fiber Leg > --- UTILITY (2) ------ (None) > --- WEAPON (2) ------- Subdweller Machine Gun Light Cannon (fused) > --- INVENTORY (5) ---- Light Angular Momentum Engine Subdweller Optics Light Cannon Flamer Peak State ------------ > --- POWER ------------ Neutrino Core > --- PROPULSION ------- Carbon-fiber Leg Carbon-fiber Leg > --- UTILITY ---------- Scrap Shield > --- WEAPON ----------- Subdweller Machine Gun Light Cannon > --- INVENTORY -------- Light Angular Momentum Engine Subdweller Optics Light Cannon Light Cannon Flamer [Rating: 20] Favorites ----------- Power Light Ion Engine Engine Light Ion Engine Power Core Neutrino Core Propulsion Light Treads Treads Light Treads Leg Carbon-fiber Leg Utility Scrap Shield Device Improved Terrain Scanner Storage Medium Storage Unit Protection Scrap Shield Weapon Light Cannon Energy Gun Medium Laser Ballistic Gun Subdweller Machine Gun Ballistic Cannon Light Cannon Build | -11 -10 -10 ------- Run | Yrd Mat Sub Slots Evolved . | . . . Power . | . . . Propulsion . | . . . Utility . | . . . Weapon . | . . . Parts Attached 19 | 7 4 8 Power 3 | 1 . 2 Engine 2 | 1 . 1 Core 1 | . . 1 Reactor . | . . . Propulsion 6 | 2 . 4 Treads 2 | 2 . . Leg 4 | . . 4 Wheel . | . . . Hover . | . . . Flight . | . . . Utility 5 | 2 2 1 Device 1 | 1 . . Storage 3 | 1 2 . Processor . | . . . Hackware . | . . . Protection 1 | . . 1 Artifact . | . . . Weapon 5 | 2 2 1 Energy Gun 2 | 2 . . Energy Cannon . | . . . Ballistic Gun 1 | . . 1 Ballistic Cannon 2 | . 2 . Launcher . | . . . Special Weapon . | . . . Impact Weapon . | . . . Slashing Weapon . | . . . Piercing Weapon . | . . . Special Melee Weapon . | . . . Unidentified Prototypes . | . . . Parts Lost 3 | . 2 1 Power . | . . . Propulsion 1 | . 1 . Utility 2 | . 1 1 Weapon . | . . . Highest Loss Streak 2 | . 2 1 To Critical Strikes . | . . . Average Backups 6 | 3 9 4 Power . | 1 1 . Propulsion 1 | . 2 . Utility 1 | . 1 2 Weapon 3 | 1 4 2 Tool/Special . | . . . Unused Backups 16 | . 5 11 Power 3 | . 2 1 Propulsion . | . . . Utility 5 | . . 5 Weapon 8 | . 3 5 Tool/Special . | . . . Average Slot Usage (%) 88 | . 90 85 Engine 11 | . 14 8 Core 2 | . . 5 Treads 10 | . 19 . Leg 13 | . . 27 Device 2 | . 5 . Storage 12 | . 22 1 Protection 6 | . . 13 Energy Gun 6 | . 11 . Ballistic Gun 5 | . . 10 Ballistic Cannon 16 | . 16 17 Peak Build Rating 20 | 9 10 20 Average Rating 11 | 7 7 16 On Entrance 5 | . 9 7 Avg Prop Armor Cover (%) . | . . . Naked Turns . | . . . Heaviest Build 39 | 13 21 39 Greatest Support 40 | 40 40 30 Greatest Overweight (x) 1 | . 1 1 Average Overweight (x) . | . . . Largest Inventory Capacity 10 | 8 10 10 Average Capacity 7 | 7 9 5 Most Carried 10 | 8 10 10 Average Carried 6 | 2 9 5 Final Capacity 10 | 8 10 5 Final Carried 10 | 8 10 4 Class Distribution -------------------- 66% | Mutant 33% | Scavenger-Mutant Dominant Class ---------------- Mutant | -10/Materials Scavenger-Mutant | -10/Subcaves Resources | -11 -10 -10 ----------- Run | Yrd Mat Sub Matter Collected 769 | 270 274 225 Remotely . | . . . Salvage Created 754 | 184 368 202 Parts 53 | 14 28 11 Haulers Intercepted 1 | . 1 . Recyclers Shooed . | . . . Parts Field Recycled . | . . . Retrieved Matter . | . . . Parts Self-Destructed 6 | . . 6 Prevented . | . . . Parts Restored . | . . . Kills | -11 -10 -10 ------- Run | Yrd Mat Sub Combat Hostiles Destroyed 18 | . 11 7 Guns 11 | . 9 2 Cannons 7 | . 2 5 Classes Destroyed 9 | 3 5 1 Worker 2 | 2 . . Builder 1 | . 1 . Tunneler 3 | 3 . . Hauler 1 | . 1 . Recycler 1 | 1 . . Watcher 2 | . 2 . Swarmer 6 | . 6 . Grunt 5 | . 5 . Subdweller 7 | . . 7 Best Kill Streak 3 | 3 3 3 Combat Bots Only 3 | . 3 3 Max Kills in Single Turn 1 | 1 1 1 Gunslinging . | . . . Exploded . | . . . Melee . | . . . Uniques/NPCs Destroyed . | . . . Combat | -11 -10 -10 -------- Run | Yrd Mat Sub Hostile Shots Fired 116 | . 61 55 Missed 30 | . 18 12 Hits 86 | . 43 43 Projectile 86 | . 43 43 Critical Strikes 1 | . . 1 Damage Taken 1282 | . 383 899 Core 250 | . 97 153 Absorbed by Shields . | . . . Core Remaining (%) 100 | 100 . . Volleys Fired 97 | 9 57 31 Largest 2 | 2 2 2 Hottest 100 | 100 100 60 Shots Fired 178 | 18 97 63 Gun 129 | 18 85 26 Cannon 49 | . 12 37 Launcher . | . . . Special . | . . . Kinetic 75 | . 12 63 Thermal 103 | 18 85 . Explosive . | . . . Electromagnetic . | . . . Robot Hit Streak 12 | 6 6 12 Robot Miss Streak 4 | 2 4 3 Penetration Max . | . . . Secondary Targets 1 | . 1 . Max Gunslinging Chain 1 | . 1 . Shots Hit Robots 105 | 11 50 44 Core Hits 38 | 7 19 12 Critical Kills 1 | . . 1 Critical Parts Destroyed . | . . . Critical Strikes 7 | 2 4 1 Burn 6 | 2 4 . Destroy 1 | . . 1 Melee Attacks . | . . . Impact . | . . . Slashing . | . . . Piercing . | . . . Sneak Attacks . | . . . Combat Hostiles . | . . . Follow-up Attacks . | . . . Damage Inflicted 1631 | 138 659 834 Guns 1045 | 138 569 338 Cannons 586 | . 90 496 Explosions . | . . . Melee . | . . . Ramming . | . . . Kinetic 924 | . 90 834 Thermal 707 | 138 569 . Explosive . | . . . Electromagnetic . | . . . Impact . | . . . Slashing . | . . . Piercing . | . . . Highest Corruption 1 | . 1 1 Average Corruption 1 | . 1 1 Corruption Purged . | . . . Corruption Blocked . | . . . Effects 31 | . 13 18 Message Errors 10 | . 4 6 Matter Fused 8 | . 2 6 Heat Flow Errors 4 | . 3 1 Energy Discharges 2 | . 1 1 Parts Fused 1 | . . 1 Data Loss (major) 1 | . . 1 Misfires 3 | . 2 1 Alerts 2 | . 1 1 Overload Shots . | . . . Overflow Damage . | . . . Projectiles . | . . . Explosions . | . . . Melee . | . . . Knockbacks 8 | . . 8 Impact . | . . . Kinetic 7 | . . 7 Secondary 1 | . . 1 Self-Inflicted Damage . | . . . Shots . | . . . Rammed . | . . . Targets Rammed . | . . . Kicked . | . . . Crushed . | . . . Highest Temperature 508 | 156 508 166 Average Temperature 100 | 72 106 92 Received Heat Transfer 204 | . 102 102 Effects 4 | . 4 . Shutdowns 1 | . 1 . Short Circuit 1 | . 1 . Damage (minor) 2 | . 2 . Siege Activations . | . . . Martial Activations . | . . . Shielding Activations . | . . . Robots Disrupted . | . . . Combat Hostiles . | . . . Robots Corrupted . | . . . Combat Hostiles . | . . . Parts Fried . | . . . Impact Corruptions . | . . . Robots Melted . | . . . Combat Hostiles . | . . . Parts Melted 4 | 2 2 . Heat Transferred 2553 | 555 1998 . Parts Sabotaged . | . . . Parts Stolen . | . . . Parts Stripped . | . . . Power Chain Reactions . | . . . Alert | -11 -10 -10 ------- Run | Yrd Mat Sub Maximum Alert Level . | . . . Low Security (%) 100 | 100 100 . Level 1 . | . . . Level 2 . | . . . Level 3 . | . . . Level 4 . | . . . Level 5 . | . . . High Security . | . . . Max Security . | . . . Peak Influence 65 | 10 65 . Initial . | . . . Average 10 | 1 11 . Influence Increases 314 | 30 284 . Destroy 0b10 Robot/C 220 | . 220 . Destroy 0b10 Robot/NC 50 | 30 20 . Destroy Leader 36 | . 36 . Successful Hack 7 | . 7 . Destroy Structure 1 | . 1 . Influence Decreases 314 | 30 284 . Time Decay 294 | 30 264 . Lost Part 20 | . 20 . Squads Dispatched 2 | . 2 . Investigation 2 | . 2 . Extermination . | . . . Reinforcement . | . . . Assault . | . . . Garrison . | . . . Intercept . | . . . Searches Triggered . | . . . Construction Impeded . | . . . Haulers Reinforced . | . . . Active Scanning Responses . | . . . Cargo Convoy Interrupts . | . . . Stealth | -11 -10 -10 --------- Run | Yrd Mat Sub Distress Signals . | . . . Communications Jammed . | . . . Distress Signals . | . . . Times Spotted 29 | . 15 14 Peak Tracking Total 6 | . 3 6 Tactical Retreats . | . . . Traps | -11 -10 -10 ------- Run | Yrd Mat Sub Traps Triggered . | . . . Indirectly . | . . . Trap Hack Attempts . | . . . Triggered . | . . . Disarmed . | . . . Reprogrammed . | . . . Reused . | . . . Traps Extracted . | . . . Installed . | . . . Triggered . | . . . Machines | -11 -10 -10 ---------- Run | Yrd Mat Sub Machines Disabled . | . . . Max in Single Turn . | . . . Machines Repaired . | . . . Machines Dismantled . | . . . Machines Sabotaged . | . . . Overloaded Fab Kills . | . . . Hacking | -11 -10 -10 --------- Run | Yrd Mat Sub Machines Accessed 7 | . 7 . Terminals 5 | . 5 . Fabricators . | . . . Repair Stations 1 | . 1 . Recycling Units 1 | . 1 . Scanalyzers . | . . . Garrison Access . | . . . Total Hacks 25 | . 25 . Successful 9 | . 9 . Failed 16 | . 16 . Catastrophic 4 | . 4 . Database Lockouts . | . . . Manual 1 | . 1 . Terminals 19 | . 19 . Fabricators . | . . . Repair Stations 3 | . 3 . Recycling Units 3 | . 3 . Scanalyzers . | . . . Garrison Access . | . . . Terminal Hacks 7 | . 7 . Prototype ID Bank 2 | . 2 . Emergency Access Points 2 | . 2 . Dispatch Records 1 | . 1 . Transport Status 1 | . 1 . Hauler Manifests 1 | . 1 . Fabricator Hacks . | . . . Repair Station Hacks 1 | . 1 . Scan Component 1 | . 1 . Recycling Unit Hacks 1 | . 1 . Report Inventory 1 | . 1 . Scanalyzer . | . . . Garrison Access Hacks . | . . . Unauthorized Hacks . | . . . Terminals . | . . . Fabricators . | . . . Repair Stations . | . . . Recycling Units . | . . . Scanalyzers . | . . . Garrison Access . | . . . Data Cores Recovered . | . . . Used . | . . . Hacking Detections 7 | . 7 . Full Trace Events 6 | . 6 . Feedback Events 1 | . 1 . Corruption 1 | . 1 . Feedback Blocked . | . . . Robot Schematics Acquired . | . . . Robots Built . | . . . Authchips . | . . . Time . | . . . Total Robot Build Rating . | . . . Part Schematics Acquired . | . . . Parts Built . | . . . Authchips . | . . . Time . | . . . Total Part Build Rating . | . . . Part Studies Acquired . | . . . Parts Repaired . | . . . Time . | . . . Parts Recycled . | . . . Recycled Matter . | . . . Retrieved Matter . | . . . Retrieved Components . | . . . Parts Scanalyzed . | . . . Part Schematics Acquired . | . . . Parts Damaged . | . . . Bothacking | -11 -10 -10 ------------ Run | Yrd Mat Sub Used RIF Installer . | . . . Robots Hacked . | . . . Non-combat . | . . . Combat . | . . . Robot Hacks Applied . | . . . Relay Couplers Released . | . . . Fabnet Peak Effective % . | . . . Robots Rewired . | . . . Allies Hacked . | . . . Hacks Repelled . | . . . Allies | -11 -10 -10 -------- Run | Yrd Mat Sub Total Allies . | . . . Largest Group . | . . . Highest-Rated Group . | . . . Highest-Rated Ally . | . . . Total Orders . | . . . Ally Attacks . | . . . Total Damage . | . . . Kills . | . . . Allies Corrupted . | . . . Allies Melted . | . . . Intel | -11 -10 -10 ------- Run | Yrd Mat Sub Active Infowar (turns) 718 | 138 580 . Terrain 718 | 138 580 . Robot Analysis Total . | . . . Derelict Logs Recovered . | . . . Drone Launches . | . . . Drone Recoveries . | . . . Exploration | -11 -10 -10 ------------- Run | Yrd Mat Sub Turns Passed 3041 | 230 1485 1326 Spaces Moved 1329 | 120 606 603 Core 6 | 6 . . Treads 723 | 114 606 3 Legs 600 | . . 600 Wheels . | . . . Hover . | . . . Flight . | . . . Fastest Speed 50 | 50 160 120 Average Speed 194 | 154 206 190 Slowest Speed 240 | 160 240 240 Overloaded Moves . | . . . Propulsion Burnouts . | . . . Robots Hopped . | . . . Potential Cave-ins . | . . . Cave-ins Triggered . | . . . Exploration Rate (%) 36 | 6 66 37 Regions Visited 2 Branch Regions 1 Pre-discovered Areas . | . . . Known Exits Taken . | . . . Unknown Exits Taken 2 | 1 1 . Scrap Searched . | . . . Spaces Dug . | . . . Terrain Destroyed . | . . . Melee . | . . . Projectile . | . . . AOE . | . . . Terrain Rammed . | . . . Walls Destroyed . | . . . Machines Disabled . | . . . Actions | -11 -10 -10 --------- Run | Yrd Mat Sub Total 1621 | 143 750 728 Wait 125 | . 68 57 Move 1327 | 119 605 603 Hop . | . . . Pick Up 27 | 8 9 10 Fast Attach 7 | 7 . . Attach 3 | . 1 2 Detach . | . . . Swap 10 | . 3 7 Drop 22 | . 7 15 Fire 97 | 9 57 31 Melee . | . . . Ram . | . . . Kick . | . . . Crush . | . . . Escape Stasis . | . . . Rewire . | . . . Trap . | . . . Miscellaneous 3 | . . 3 Route ------- -11/Scrapyard -10/Materials (discovered 4 exits: [*Mat x2] / [*Min] / [*Sub]) -10/Subcaves History --------- Turn | Location | Event 25 | -11/Scrapyard | Discovered new exit (range 16) 231 | -11/Scrapyard | Entered Materials 306 | -10/Materials | Build established: Mutant 515 | -10/Materials | Discovered new exit (range 7) 914 | -10/Materials | Discovered new exit (range 4) 1023 | -10/Materials | Discovered new exit (range 15) 1134 | -10/Materials | Discovered new exit (range 7) 1716 | -10/Materials | Entered Subcaves 1860 | -10/Subcaves | Ambushed by swarm of Subdwellers 1909 | -10/Subcaves | Lost 3 allies 2330 | -10/Subcaves | Build established: Scavenger-Mutant 2679 | -10/Subcaves | Core integrity fell below 50% 3033 | -10/Subcaves | Core integrity fell below 20% 3042 | -10/Subcaves | Destroyed by 6D-FDP(R) with Subdweller Machine Gun Last Messages --------------- 02567_ Acquired Armor Integrity Analyzer. 02576_ Acquired 2 matter. 02589_ Acquired 3 matter. 02619_ System corrupted: Heat flow error (+203). 02662_ System corrupted: Substantial component data lost. 02686_ EN-B6B(R) knocked back. 02695_ EN-B6B(R) suffers critical hit (Destroy). 02695_ EN-B6B(R) destroyed. 02701_ 5B-QBY(R) destroyed. 02707_ Acquired 46 matter. 02711_ Acquired 5 matter. 02732_ System corrupted: IFF burst signal emitted. 02817_ S8-I0T(z): "She is not going to be happy we haven't found any suitable candidates yet." 02834_ System corrupted: Matter fused (-7). 02990_ 6D-FDP(R) knocked back. 03022_ B4 CWTARR9C8HNDS